[Event "Reykjavik Open 2022"]
[Site "Reykjavik"]
[Date "2022.04.08"]
[Round "4.30"]
[White "Tania, Sachdev"]
[Black "White, Nigel"]
[Result "1-0"]
[ECO "D39"]
[WhiteElo "2392"]
[BlackElo "1997"]
[Annotator "TA"]
[PlyCount "135"]
[EventDate "2022.04.06"]
[EventCountry "ISL"]
[SourceTitle "playchess.com"]
[Source "ChessBase"]
[SourceQuality "1"]
[TimeControl "40/5400+30:1800+30"]

{[%evp 12,135,5,0,0,0,0,0,0,-11,-14,-11,-6,-12,-7,0,0,0,0,10,2,-45,-20,-22,32,-80,-35,-52,-27,-52,0,9,89,90,127,108,116,37,54,0,0,0,28,37,73,73,73,68,65,0,83,88,250,245,253,172,172,172,180,165,172,164,164,142,196,172,177,177,218,175,317,314,331,333,345,349,350,202,195,0,347,342,321,329,410,421,393,389,427,427,421,250,763,763,676,668,602,588,569,541,500,417,881,715,1429,1293,6121,6609,29956,29960,11210,6605,4602,2354,29975,29976,29981,29980,29981,29977,29978,29979,29992,29993,29993,29994]} 1. d4 {[%emt 0:00:15]} Nf6 {[%emt 0:00:06]} 2. c4 {[%emt 0:00:04]} e6 {[%emt 0:00:03]} 3. Nf3 {[%emt 0:00:08]} d5 {[%emt 0:00:04]} 4. Nc3 {[%emt 0:00:04]} Bb4 {[%emt 0:00:04]} 5. Qa4+ {[%emt 0:02:18]} Nc6 {[%emt 0:00:05]} 6. Bg5 {[%emt 0:00:06]} dxc4 {[%emt 0:03:14]} 7. e3 {[%emt 0:00:25]} Bd7 {[%emt 0:01:39][%cal Oc6d4] D39: Queen's Gambit Declined: Ragozin Defence with 5 Bg5 dxc4.} 8. Qc2 {[%emt 0:00:30]} b5 {[%emt 0:04:41]} 9. Be2 {[%emt 0:00:16]} O-O {[%emt 0:01:37] [#] The position is equal.} 10. a3 $146 {[%emt 0:06:14]} ({Predecessor:} 10. O-O a6 11. a4 Rb8 12. axb5 axb5 13. Ne4 Be7 14. Bxf6 gxf6 15. b3 f5 16. Ned2 {½-½ (30) Bai,J (2556)-Christiansen,J (2525) Manavgat 2018}) 10... Bxc3+ {[%emt 0:08:35]} 11. bxc3 {[%emt 0:00:05]} a6 {[%emt 0:04:36]} 12. e4 {[%emt 0:15:39]} Qe8 {[%emt 0:08:32]} 13. Ne5 {[%emt 0:13:35]} Kh8 {[%emt 0:00:57]} 14. Bxf6 {[%emt 0:06:42]} gxf6 {[%emt 0:00:20]} 15. Ng4 {[%emt 0:00:01]} Qe7 {[%emt 0:02:01]} 16. O-O {[%emt 0:03:46]} (16. e5 $11 {deserves consideration.} fxe5 17. dxe5) 16... Rg8 {[%emt 0:00:48]} 17. Ne3 {[%emt 0:06:02] Prevents f5.} Rg7 {[%emt 0:04:35]} (17... Na5 $11) 18. f4 {[%emt 0:03:16]} (18. a4 $14 {stays ahead.} Rag8 19. g3) 18... Rag8 {[%emt 0:00:54]} 19. Bf3 {[%emt 0:00:07]} Na5 {[%emt 0:03:20]} (19... e5 $5 {[%cal Re5d4]} 20. Nf5 Bxf5 21. exf5 Nxd4 $1 22. cxd4 exd4 $11) 20. Qf2 {[%emt 0:05:01]} c6 {[%emt 0:03:15]} (20... Nb3 $15 21. Ra2 e5) 21. Qh4 $11 {[%emt 0:03:21]} Re8 {[%emt 0:08:58]} (21... Qd8 $11) 22. Ng4 $1 $16 {[%emt 0:05:14]} e5 {[%emt 0:01:08]} 23. Nxf6 {[%emt 0:04:02]} exd4 {[%emt 0:00:14]} 24. e5 {[%emt 0:04:02]} (24. cxd4 $16 {Threatens to win with Rad1.} Rd8 25. Rad1) 24... Bf5 $1 $14 {[%emt 0:04:02] White must now prevent ...Rd8.} (24... dxc3 $2 25. Be4 Nb3 26. Rae1 $18) 25. cxd4 {[%emt 0:09:07]} (25. Qh5 $1 $14 Bg6 26. Qh3) 25... Rd8 {[%emt 0:00:26] ...Nb3 is the strong threat.} 26. Rad1 {[%emt 0:02:08]} c3 {[%emt 0:01:30]} (26... Qxa3 $2 27. Nh5 Rdg8 28. Nxg7 Rxg7 29. Qd8+ Rg8 30. Qf6+ Rg7 31. Qxf5 $18) (26... Nb3 $5 {[%cal Rc4c3]} 27. Qh5 Bg6 $17) 27. Qe1 $1 {[%emt 0:01:16]} c2 {[%emt 0:00:31] [#]} 28. Qxa5 $1 {[%emt 0:00:08]} cxd1=Q (28... cxd1=R 29. Rxd1) 29. Rxd1 {[%emt 0:00:04]} Rg6 $1 {[%emt 0:07:08]} 30. Qxa6 {[%emt 0:05:00] &Bianco is more active.} ({Much worse is} 30. Bxc6 Bc2 31. Rf1 Bd3 $11) ({White should try} 30. Qc3 $14) 30... Rxf6 {[%emt 0:01:11]} (30... Bc2 $11 {keeps the balance.} 31. Rf1 Bd3) 31. exf6 $16 {[%emt 0:00:05]} Qxf6 {[%emt 0:00:16]} (31... Qe3+ $16 32. Kh1 Be4 33. Bxe4 Qxe4) 32. Qxc6 $18 {[%emt 0:00:13]} Qe7 {[%emt 0:05:43]} 33. Qxb5 {[%emt 0:01:46]} Bc2 {[%emt 0:00:07]} 34. Rf1 {[%emt 0:00:49] aiming for d5.} Rxd4 {[%emt 0:03:17]} 35. Qe5+ {[%emt 0:01:21]} Qxe5 {[%emt 0:00:08]} 36. fxe5 {[%emt 0:00:02][%mdl 4096] Endgame KRB-KRB} Kg7 {[%emt 0:02:00]} 37. Rc1 {[%emt 0:02:42]} Bb3 {[%emt 0:02:57]} (37... Be4 $16 38. Rd1 Ra4 39. Bxe4 Rxe4) 38. Rc3 {[%emt 0:00:28]} Be6 {[%emt 0:00:12]} 39. Kf2 {[%emt 0:00:26]} Rh4 {[%emt 0:02:40]} 40. h3 {[%emt 0:00:00]} Kg6 {[%emt 0:00:00]} (40... Ra4 {was worth a try.} 41. Ke3 Bd7) 41. Bc6 {[%emt 0:10:01]} Kf5 {[%emt 0:03:16]} 42. Rc5 {[%emt 0:00:11]} h5 {[%emt 0:04:17]} 43. Ke3 {[%emt 0:03:48] Prevents Rd4.} Bb3 {[%emt 0:10:18]} 44. Bd7+ {[%emt 0:00:06]} (44. Bf3 $142) 44... Be6 {[%emt 0:01:17]} 45. Bc6 {[%emt 0:00:04]} (45. Bb5) 45... Bb3 $1 {[%emt 0:00:04]} 46. Bf3 {[%emt 0:07:37]} Be6 {[%emt 0:00:59] [#]} 47. Bxh5 $1 {[%emt 0:01:52][%mdl 512]} Ra4 {[%emt 0:02:10]} (47... Re4+ 48. Kf2) 48. Bg4+ {[%emt 0:01:11]} Kg5 {[%emt 0:00:11]} 49. Bxe6 {[%emt 0:00:10]} Rxa3+ {[%emt 0:01:08]} 50. Kd4 {[%emt 0:01:45]} fxe6 {[%emt 0:00:06] KR-KR} 51. Rc2 {[%emt 0:00:08]} (51. Rc6 $142) 51... Ra4+ $2 {[%emt 0:00:35]} (51... Ra1 52. Re2 Kf5 53. Rf2+ Kg5) 52. Kc5 {[%emt 0:01:36]} Kf5 {[%emt 0:01:19]} 53. Re2 {[%emt 0:00:20]} Ra5+ {[%emt 0:01:40]} 54. Kd6 $1 {[%emt 0:00:23]} Ra6+ {[%emt 0:00:23] [#]} 55. Ke7 $1 {[%emt 0:00:09] And now g4+ would win.} Ra7+ {[%emt 0:00:15] [#]} 56. Kf8 $1 {[%emt 0:01:48] Strongly threatening g4+.} Rb7 {[%emt 0:01:41]} (56... Kf4 $142 57. Kg8 Kg3) 57. g4+ {[%emt 0:02:44][%cal Bg2g4,Bg4g5,Bg5g6][%mdl 32]} Kf4 {[%emt 0:00:06]} 58. Rf2+ {[%emt 0:00:52]} Kxe5 {[%emt 0:00:14]} 59. g5 {[%emt 0:00:44] Threatening mate with g6.} Rh7 {[%emt 0:09:17]} 60. Rf3 {[%emt 0:01:38]} Ke4 {[%emt 0:00:33] [#]} 61. g6 $1 {[%emt 0:00:29][%mdl 512]} Rh8+ {[%emt 0:02:01]} 62. Kg7 {[%emt 0:00:07]} Rh4 {[%emt 0:01:32]} 63. Ra3 {[%emt 0:00:29] White mates.} Kf5 {[%emt 0:01:11]} 64. Kf7 {[%emt 0:00:55]} Rb4 {[%emt 0:03:13]} 65. Rf3+ {[%emt 0:01:11]} Kg5 {[%emt 0:00:17]} 66. Rg3+ {[%emt 0:00:43]} Kh6 {[%emt 0:00:20]} 67. g7 {[%emt 0:00:10]} Rb7+ {[%emt 0:03:06]} 68. Kf6 {[%emt 0:00:39] Weighted Error Value: White=0.22 (precise) /Black=0.26 (precise)} 1-0

[Event "Reykjavik Open 2022"]
[Site "Reykjavik"]
[Date "2022.04.08"]
[Round "4.31"]
[White "Grieve, Harry"]
[Black "Kristinsson, Ogmundur"]
[Result "1-0"]
[ECO "D02"]
[WhiteElo "2384"]
[BlackElo "1970"]
[Annotator "RC"]
[PlyCount "57"]
[EventDate "2022.04.06"]
[EventCountry "ISL"]
[SourceTitle "playchess.com"]
[Source "ChessBase"]
[SourceQuality "1"]
[TimeControl "40/5400+30:1800+30"]

1. d4 {[%emt 0:00:04]} d5 {[%emt 0:00:18]} 2. Nf3 {[%emt 0:00:07]} e6 {[%emt 0:00:49]} 3. c3 {[%emt 0:01:06]} Nf6 {[%emt 0:00:40]} 4. Bg5 {[%emt 0:00:15]} Be7 {[%emt 0:00:12]} 5. Nbd2 {[%emt 0:00:16]} Ne4 {[%emt 0:02:44]} 6. Nxe4 {[%emt 0:06:31]} dxe4 {[%emt 0:00:41]} 7. Bxe7 {[%emt 0:00:06]} Qxe7 {[%emt 0:00:14]} 8. Nd2 {[%emt 0:00:11]} f5 {[%emt 0:02:13]} 9. e3 {[%emt 0:01:21]} Nd7 {[%emt 0:04:21]} 10. Bc4 {[%emt 0:09:13]} c6 {[%emt 0:01:40]} 11. O-O {[%emt 0:01:03]} O-O {[%emt 0:00:12]} 12. f3 {[%emt 0:00:55]} exf3 {[%emt 0:00:57]} 13. Qxf3 {[%emt 0:00:11]} b5 {[%emt 0:02:43]} 14. Qxc6 {[%emt 0:04:18]} Nb6 {[%emt 0:02:28]} 15. Qxb5 {[%emt 0:04:05]} Rb8 {[%emt 0:02:31]} 16. Bb3 {[%emt 0:01:36]} Bd7 {[%emt 0:02:37]} 17. Qe5 {[%emt 0:00:41]} Kh8 {[%emt 0:11:43]} 18. Rxf5 {[%emt 0:00:09]} Rfe8 {[%emt 0:04:32]} 19. Rf2 {[%emt 0:00:50]} Bc6 {[%emt 0:00:19]} 20. Raf1 {[%emt 0:03:04]} Nd7 {[%emt 0:00:44]} 21. Qc7 {[%emt 0:01:33]} Rbc8 {[%emt 0:02:34]} 22. Qg3 {[%emt 0:01:39]} Nf6 {[%emt 0:01:29]} 23. e4 {[%emt 0:02:57]} e5 {[%emt 0:02:08]} 24. Rf5 {[%emt 0:02:29]} Bxe4 {[%emt 0:05:03]} 25. Rxe5 {[%emt 0:01:54]} Qb7 {[%emt 0:00:14]} 26. Nxe4 {[%emt 0:00:59]} Nxe4 {[%emt 0:01:18]} 27. Rf7 {[%emt 0:02:32]} Nxg3 {[%emt 0:06:24]} 28. Rxb7 {[%emt 0:00:10]} Ne4 {[%emt 0:00:11]} 29. Rxa7 {[%emt 0:01:46]} 1-0

[Event "Reykjavik Open 2022"]
[Site "Reykjavik"]
[Date "2022.04.08"]
[Round "4.32"]
[White "Song, Julien"]
[Black "Khoury, Theo"]
[Result "1-0"]
[ECO "A70"]
[WhiteElo "2352"]
[BlackElo "1878"]
[Annotator "RC"]
[PlyCount "79"]
[EventDate "2022.04.06"]
[EventCountry "ISL"]
[SourceTitle "playchess.com"]
[Source "ChessBase"]
[SourceQuality "1"]
[TimeControl "40/5400+30:1800+30"]

1. d4 {[%emt 0:02:35]} Nf6 {[%emt 0:00:10]} 2. c4 {[%emt 0:00:17]} c5 {[%emt 0:00:07]} 3. d5 {[%emt 0:00:17]} e6 {[%emt 0:00:09]} 4. Nc3 {[%emt 0:00:14]} exd5 {[%emt 0:00:12]} 5. cxd5 {[%emt 0:00:04]} d6 {[%emt 0:00:10]} 6. Nf3 {[%emt 0:00:50]} g6 {[%emt 0:00:07]} 7. h3 {[%emt 0:00:43]} Bg7 {[%emt 0:00:15]} 8. e4 {[%emt 0:00:33]} O-O {[%emt 0:00:13]} 9. Be3 {[%emt 0:00:53]} b5 {[%emt 0:01:58]} 10. e5 {[%emt 0:04:37]} dxe5 {[%emt 0:03:16]} 11. Bxb5 {[%emt 0:00:45]} e4 {[%emt 0:04:03]} 12. Ne5 {[%emt 0:01:47]} Ne8 {[%emt 0:19:04]} 13. Nc6 {[%emt 0:16:27]} Qb6 {[%emt 0:03:24]} 14. Ne7+ {[%emt 0:10:06]} Kh8 {[%emt 0:00:08]} 15. Nxc8 {[%emt 0:00:48]} Bxc3+ {[%emt 0:00:18]} 16. bxc3 {[%emt 0:00:31]} Qxb5 {[%emt 0:00:11]} 17. Ne7 {[%emt 0:02:22]} Nd6 {[%emt 0:04:31]} 18. Bf4 {[%emt 0:08:33]} Nc4 {[%emt 0:03:51]} 19. O-O {[%emt 0:05:25]} Nd7 {[%emt 0:04:14]} 20. Qb3 {[%emt 0:05:49]} Qa6 {[%emt 0:03:20]} 21. Nc6 {[%emt 0:05:25]} Rfe8 {[%emt 0:03:37]} 22. a4 {[%emt 0:04:54]} Nde5 {[%emt 0:02:45]} 23. Qb5 {[%emt 0:05:31]} Qb6 {[%emt 0:02:44]} 24. Rfb1 {[%emt 0:04:16]} h5 {[%emt 0:08:00]} 25. Qxb6 {[%emt 0:05:13]} axb6 {[%emt 0:03:23]} 26. Nxe5 {[%emt 0:00:19]} Nxe5 {[%emt 0:00:08]} 27. Rxb6 {[%emt 0:00:17]} Nd3 {[%emt 0:00:38]} 28. Bg5 {[%emt 0:05:51]} c4 {[%emt 0:03:32]} 29. a5 {[%emt 0:01:06]} Rab8 {[%emt 0:02:47]} 30. Rxb8 {[%emt 0:01:58]} Rxb8 {[%emt 0:00:04]} 31. a6 {[%emt 0:00:20]} Nc5 {[%emt 0:02:32]} 32. a7 {[%emt 0:00:14]} Ra8 {[%emt 0:00:05]} 33. Be3 {[%emt 0:00:10]} Nd7 {[%emt 0:00:36]} 34. Rb1 {[%emt 0:00:31]} Kg7 {[%emt 0:04:21]} 35. Bd4+ {[%emt 0:00:35]} Kf8 {[%emt 0:00:27]} 36. d6 {[%emt 0:00:46]} Ke8 {[%emt 0:01:31]} 37. Rb4 {[%emt 0:00:16]} Kd8 {[%emt 0:01:52]} 38. Rxc4 {[%emt 0:00:20]} Nf8 {[%emt 0:00:33]} 39. Rc7 {[%emt 0:00:21]} Nd7 {[%emt 0:01:23]} 40. c4 {[%emt 0:00:00]} 1-0

[Event "Reykjavik Open 2022"]
[Site "Reykjavik"]
[Date "2022.04.08"]
[Round "4.33"]
[White "Dishman, Stephen"]
[Black "Maes, Tibo"]
[Result "1-0"]
[ECO "D02"]
[WhiteElo "2332"]
[BlackElo "1918"]
[Annotator "RC"]
[PlyCount "93"]
[EventDate "2022.04.06"]
[EventCountry "ISL"]
[SourceTitle "playchess.com"]
[Source "ChessBase"]
[SourceQuality "1"]
[TimeControl "40/5400+30:1800+30"]

1. Nf3 {[%emt 0:00:05]} d5 {[%emt 0:00:11]} 2. d4 {[%emt 0:01:47]} Nf6 {[%emt 0:00:43]} 3. Bf4 {[%emt 0:00:46]} e6 {[%emt 0:01:20]} 4. Nbd2 {[%emt 0:00:21]} Bd6 {[%emt 0:01:32]} 5. Bg5 {[%emt 0:00:33]} c5 {[%emt 0:06:11]} 6. e4 {[%emt 0:05:02]} dxe4 {[%emt 0:08:34]} 7. Nxe4 {[%emt 0:01:10]} cxd4 {[%emt 0:08:04]} 8. Qxd4 {[%emt 0:11:33]} Be7 {[%emt 0:02:10]} 9. Qxd8+ {[%emt 0:08:30]} Kxd8 {[%emt 0:02:16]} 10. O-O-O+ {[%emt 0:02:22]} Bd7 {[%emt 0:07:40]} 11. Nd6 {[%emt 0:13:16]} Bxd6 {[%emt 0:03:51]} 12. Bxf6+ {[%emt 0:02:05]} gxf6 {[%emt 0:03:35]} 13. Rxd6 {[%emt 0:00:13]} Ke7 {[%emt 0:01:04]} 14. Rd2 {[%emt 0:06:04]} Rg8 {[%emt 0:03:37]} 15. g3 {[%emt 0:06:42]} Bc6 {[%emt 0:02:23]} 16. Be2 {[%emt 0:01:16]} Nd7 {[%emt 0:03:27]} 17. Re1 {[%emt 0:00:30]} Nc5 {[%emt 0:02:33]} 18. Nd4 {[%emt 0:01:45]} Ne4 {[%emt 0:02:52]} 19. Nxc6+ {[%emt 0:01:07]} bxc6 {[%emt 0:00:07]} 20. Rd4 {[%emt 0:00:17]} Nxf2 {[%emt 0:01:14]} 21. Bf3 {[%emt 0:08:09]} Rac8 {[%emt 0:09:30]} 22. Ra4 {[%emt 0:01:51]} Rc7 {[%emt 0:02:01]} 23. Rf1 {[%emt 0:04:16]} Nh3 {[%emt 0:00:32]} 24. Bg2 {[%emt 0:00:19]} Ng5 {[%emt 0:02:25]} 25. h4 {[%emt 0:00:16]} h5 {[%emt 0:08:57]} 26. hxg5 {[%emt 0:00:46]} Rxg5 {[%emt 0:00:14]} 27. Bf3 {[%emt 0:00:54]} Rxg3 {[%emt 0:02:31]} 28. Bxh5 {[%emt 0:00:19]} f5 {[%emt 0:04:37]} 29. Be2 {[%emt 0:01:00]} Rg2 {[%emt 0:01:43]} 30. Bd3 {[%emt 0:00:39]} Rg4 {[%emt 0:01:09]} 31. Rff4 {[%emt 0:02:14]} Rxf4 {[%emt 0:01:51]} 32. Rxf4 {[%emt 0:00:07]} Kf6 {[%emt 0:01:00]} 33. Kd2 {[%emt 0:00:43]} Kg5 {[%emt 0:02:32]} 34. Ke3 {[%emt 0:01:15]} Rc8 {[%emt 0:02:01]} 35. b4 {[%emt 0:05:45]} Rh8 {[%emt 0:01:46]} 36. a4 {[%emt 0:04:01]} Rh3+ {[%emt 0:00:30]} 37. Rf3 {[%emt 0:00:11]} f4+ {[%emt 0:00:44]} 38. Ke2 {[%emt 0:00:59]} Rh1 {[%emt 0:00:53]} 39. Rf1 {[%emt 0:01:11]} Rh2+ {[%emt 0:00:42]} 40. Rf2 {[%emt 0:00:00]} Rh1 {[%emt 0:00:00]} 41. Rg2+ {[%emt 0:08:42]} Kf6 {[%emt 0:02:41]} 42. b5 {[%emt 0:05:01]} c5 {[%emt 0:04:09]} 43. a5 {[%emt 0:01:21]} Ra1 {[%emt 0:04:50]} 44. a6 {[%emt 0:01:29]} e5 {[%emt 0:02:38]} 45. Rg8 {[%emt 0:05:16]} Ra4 {[%emt 0:02:53]} 46. Kf3 {[%emt 0:01:20]} Rd4 {[%emt 0:02:42]} 47. b6 {[%emt 0:00:55]} 1-0

[Event "Reykjavik Open 2022"]
[Site "Reykjavik"]
[Date "2022.04.08"]
[Round "4.34"]
[White "Brunello, Marina"]
[Black "Unhjem, Bjorn Robert Lovoll"]
[Result "1-0"]
[ECO "B76"]
[WhiteElo "2352"]
[BlackElo "1911"]
[Annotator "RC"]
[PlyCount "81"]
[EventDate "2022.04.06"]
[EventCountry "ISL"]
[SourceTitle "playchess.com"]
[Source "ChessBase"]
[SourceQuality "1"]
[TimeControl "40/5400+30:1800+30"]

1. e4 {[%emt 0:00:03]} c5 {[%emt 0:02:06]} 2. Nf3 {[%emt 0:00:06]} d6 {[%emt 0:00:40]} 3. d4 {[%emt 0:00:04]} cxd4 {[%emt 0:00:07]} 4. Nxd4 {[%emt 0:00:03]} Nf6 {[%emt 0:00:13]} 5. Nc3 {[%emt 0:00:03]} g6 {[%emt 0:01:12]} 6. Be3 {[%emt 0:00:07]} Bg7 {[%emt 0:00:14]} 7. f3 {[%emt 0:00:04]} O-O {[%emt 0:00:25]} 8. Qd2 {[%emt 0:00:02]} Nc6 {[%emt 0:00:12]} 9. O-O-O {[%emt 0:00:10]} d5 {[%emt 0:00:11]} 10. exd5 {[%emt 0:00:22]} Nxd5 {[%emt 0:00:10]} 11. Nxc6 {[%emt 0:00:06]} bxc6 {[%emt 0:00:11]} 12. Bd4 {[%emt 0:00:04]} Bxd4 {[%emt 0:01:13]} 13. Qxd4 {[%emt 0:00:04]} Qa5 {[%emt 0:00:23]} 14. Nxd5 {[%emt 0:01:35]} cxd5 {[%emt 0:00:08]} 15. Qxd5 {[%emt 0:00:04]} Qc7 {[%emt 0:00:08]} 16. Qxa8 {[%emt 0:04:31]} Bf5 {[%emt 0:00:09]} 17. Qxf8+ {[%emt 0:00:05]} Kxf8 {[%emt 0:00:05]} 18. Bd3 {[%emt 0:00:01]} Be6 {[%emt 0:00:10]} 19. Kb1 {[%emt 0:00:42]} Qe5 {[%emt 0:02:50]} 20. Rde1 {[%emt 0:06:38]} Qd6 {[%emt 0:00:35]} 21. h3 {[%emt 0:04:01]} a5 {[%emt 0:00:52]} 22. a4 {[%emt 0:03:12]} Qd5 {[%emt 0:07:06]} 23. b3 {[%emt 0:00:45]} Qd4 {[%emt 0:00:40]} 24. Re4 {[%emt 0:07:16]} Qc3 {[%emt 0:01:10]} 25. Rd1 {[%emt 0:00:21]} Bd5 {[%emt 0:00:57]} 26. Re2 {[%emt 0:01:09]} e5 {[%emt 0:04:27]} 27. Bb5 {[%emt 0:02:30]} Be6 {[%emt 0:00:53]} 28. Bd7 {[%emt 0:07:21]} e4 {[%emt 0:15:42]} 29. Bxe6 {[%emt 0:08:42]} exf3 {[%emt 0:00:30]} 30. gxf3 {[%emt 0:10:22]} fxe6 {[%emt 0:00:15]} 31. Rxe6 {[%emt 0:03:15]} Qxf3 {[%emt 0:00:22]} 32. Rd3 {[%emt 0:00:06]} Qf5 {[%emt 0:01:09]} 33. Red6 {[%emt 0:00:14]} Qe4 {[%emt 0:04:01]} 34. R6d5 {[%emt 0:01:11]} h5 {[%emt 0:00:19]} 35. Kb2 {[%emt 0:00:11]} Qe1 {[%emt 0:00:36]} 36. Rc3 {[%emt 0:00:22]} Qe7 {[%emt 0:01:05]} 37. Rxa5 {[%emt 0:01:02]} Qf6 {[%emt 0:02:08]} 38. Rac5 {[%emt 0:00:06]} g5 {[%emt 0:00:13]} 39. Ka2 {[%emt 0:00:08]} g4 {[%emt 0:00:47]} 40. hxg4 {[%emt 0:00:00]} hxg4 {[%emt 0:00:00]} 41. Rc8+ {[%emt 0:00:46]} 1-0

[Event "Reykjavik Open 2022"]
[Site "Reykjavik"]
[Date "2022.04.08"]
[Round "4.35"]
[White "Cummings, David H."]
[Black "Mirza, Diana"]
[Result "1-0"]
[ECO "A33"]
[WhiteElo "2327"]
[BlackElo "1898"]
[Annotator "RC"]
[PlyCount "91"]
[EventDate "2022.04.06"]
[EventCountry "ISL"]
[SourceTitle "playchess.com"]
[Source "ChessBase"]
[SourceQuality "1"]
[TimeControl "40/5400+30:1800+30"]

1. c4 {[%emt 0:00:06]} c5 {[%emt 0:04:44]} 2. Nf3 {[%emt 0:00:18]} Nc6 {[%emt 0:00:18]} 3. d4 {[%emt 0:00:22]} cxd4 {[%emt 0:00:42]} 4. Nxd4 {[%emt 0:00:05]} Nf6 {[%emt 0:01:49]} 5. Nc3 {[%emt 0:00:22]} e6 {[%emt 0:03:53]} 6. g3 {[%emt 0:01:48]} Be7 {[%emt 0:05:04]} 7. Bg2 {[%emt 0:00:42]} O-O {[%emt 0:00:29]} 8. O-O {[%emt 0:00:25]} a6 {[%emt 0:10:55]} 9. b3 {[%emt 0:03:33]} Qc7 {[%emt 0:02:03]} 10. Bb2 {[%emt 0:02:27]} b6 {[%emt 0:02:00]} 11. Rc1 {[%emt 0:01:40]} Bb7 {[%emt 0:01:23]} 12. Nd5 {[%emt 0:06:56]} Qd8 {[%emt 0:13:34]} 13. Nxe7+ {[%emt 0:03:01]} Qxe7 {[%emt 0:00:15]} 14. Qd2 {[%emt 0:01:40]} Rab8 {[%emt 0:03:26]} 15. Rfd1 {[%emt 0:10:30]} Rfd8 {[%emt 0:08:24]} 16. e4 {[%emt 0:07:27]} Qc5 {[%emt 0:14:46]} 17. h3 {[%emt 0:06:39]} Qh5 {[%emt 0:02:42]} 18. Qe3 {[%emt 0:03:48]} Qg6 {[%emt 0:02:10]} 19. Ne2 {[%emt 0:04:43]} Ba8 {[%emt 0:01:27]} 20. g4 {[%emt 0:07:23]} e5 {[%emt 0:04:30]} 21. Ng3 {[%emt 0:01:30]} h5 {[%emt 0:01:44]} 22. g5 {[%emt 0:08:40]} Ne8 {[%emt 0:05:27]} 23. h4 {[%emt 0:00:53]} Qe6 {[%emt 0:01:47]} 24. Qf3 {[%emt 0:08:01]} g6 {[%emt 0:00:14]} 25. Kh2 {[%emt 0:00:39]} b5 {[%emt 0:01:11]} 26. Bh3 {[%emt 0:00:21]} Qe7 {[%emt 0:00:14]} 27. Qe3 {[%emt 0:01:21]} b4 {[%emt 0:00:48]} 28. f4 {[%emt 0:00:49]} Nc7 {[%emt 0:01:14]} 29. f5 {[%emt 0:01:03]} a5 {[%emt 0:01:49]} 30. Rd2 {[%emt 0:01:22]} a4 {[%emt 0:00:15]} 31. Rcd1 {[%emt 0:00:07]} a3 {[%emt 0:00:21]} 32. Bc1 {[%emt 0:02:09]} Nd4 {[%emt 0:00:14]} 33. Ne2 {[%emt 0:01:42]} gxf5 {[%emt 0:01:37]} 34. Nxd4 {[%emt 0:00:42]} exd4 {[%emt 0:00:05]} 35. Rxd4 {[%emt 0:00:58]} Bxe4 {[%emt 0:00:20]} 36. Qg3 {[%emt 0:01:28]} Rbc8 {[%emt 0:02:04]} 37. Bf4 {[%emt 0:01:45]} d5 {[%emt 0:01:08]} 38. Be5 {[%emt 0:05:12]} Qc5 {[%emt 0:01:42]} 39. Bf6 {[%emt 0:02:13]} Re8 {[%emt 0:00:22]} 40. g6 {[%emt 0:00:00]} Ne6 {[%emt 0:00:00]} 41. cxd5 {[%emt 0:11:25]} f4 {[%emt 0:07:44]} 42. gxf7+ {[%emt 0:02:03]} Kxf7 {[%emt 0:00:05]} 43. dxe6+ {[%emt 0:03:26]} Kxf6 {[%emt 0:00:26]} 44. Qxf4+ {[%emt 0:00:30]} Bf5 {[%emt 0:00:21]} 45. Qg5+ {[%emt 0:00:28]} Kxe6 {[%emt 0:00:59]} 46. Bxf5+ {[%emt 0:00:09]} 1-0

[Event "Reykjavik Open 2022"]
[Site "Reykjavik"]
[Date "2022.04.08"]
[Round "4.36"]
[White "Steiner, Juraj"]
[Black "Heimisson, Hilmir Freyr"]
[Result "0-1"]
[ECO "E48"]
[WhiteElo "2027"]
[BlackElo "2312"]
[Annotator "RC"]
[PlyCount "80"]
[EventDate "2022.04.06"]
[EventCountry "ISL"]
[SourceTitle "playchess.com"]
[Source "ChessBase"]
[SourceQuality "1"]
[TimeControl "40/5400+30:1800+30"]

1. d4 {[%emt 0:00:05]} Nf6 {[%emt 0:01:14]} 2. c4 {[%emt 0:00:08]} e6 {[%emt 0:00:16]} 3. Nc3 {[%emt 0:00:14]} Bb4 {[%emt 0:00:54]} 4. e3 {[%emt 0:00:36]} O-O {[%emt 0:00:28]} 5. Bd3 {[%emt 0:00:14]} d5 {[%emt 0:00:16]} 6. cxd5 {[%emt 0:02:13]} exd5 {[%emt 0:07:08]} 7. Nge2 {[%emt 0:01:01]} Re8 {[%emt 0:01:08]} 8. O-O {[%emt 0:00:33]} c6 {[%emt 0:02:58]} 9. Qc2 {[%emt 0:01:58]} Bd6 {[%emt 0:04:01]} 10. f3 {[%emt 0:05:28]} c5 {[%emt 0:07:27]} 11. Nb5 {[%emt 0:23:32]} c4 {[%emt 0:01:36]} 12. Bf5 {[%emt 0:00:44]} Nc6 {[%emt 0:00:43]} 13. Bxc8 {[%emt 0:08:46]} Rxc8 {[%emt 0:00:08]} 14. Nxd6 {[%emt 0:11:04]} Qxd6 {[%emt 0:00:08]} 15. Bd2 {[%emt 0:01:38]} b5 {[%emt 0:01:34]} 16. a3 {[%emt 0:00:53]} a6 {[%emt 0:06:32]} 17. b4 {[%emt 0:03:14]} cxb3 {[%emt 0:16:46]} 18. Qxb3 {[%emt 0:01:58]} Nd7 {[%emt 0:00:01]} 19. a4 {[%emt 0:02:43]} b4 {[%emt 0:10:07]} 20. a5 {[%emt 0:00:17]} Rb8 {[%emt 0:01:15]} 21. Nf4 {[%emt 0:00:46]} Rb5 {[%emt 0:01:40]} 22. Rfb1 {[%emt 0:04:27]} Reb8 {[%emt 0:01:10]} 23. Qd3 {[%emt 0:18:13]} Nf8 {[%emt 0:10:25]} 24. Qf5 {[%emt 0:01:45]} g6 {[%emt 0:08:13]} 25. Qd3 {[%emt 0:00:37]} Ne6 {[%emt 0:01:35]} 26. Nxe6 {[%emt 0:00:48]} Qxe6 {[%emt 0:00:07]} 27. e4 {[%emt 0:00:25]} Qd7 {[%emt 0:06:21]} 28. e5 {[%emt 0:00:28]} Qf5 {[%emt 0:02:48]} 29. Qe3 {[%emt 0:00:23]} h5 {[%emt 0:03:01]} 30. Rc1 {[%emt 0:00:47]} Nxa5 {[%emt 0:01:19]} 31. Bxb4 {[%emt 0:01:27]} Nc4 {[%emt 0:01:12]} 32. Rxc4 {[%emt 0:00:15]} dxc4 {[%emt 0:00:05]} 33. Be7 {[%emt 0:01:02]} Rb1+ {[%emt 0:02:35]} 34. Rxb1 {[%emt 0:00:06]} Rxb1+ {[%emt 0:00:03]} 35. Kf2 {[%emt 0:00:10]} Rb2+ {[%emt 0:00:44]} 36. Kg3 {[%emt 0:00:21]} Qc2 {[%emt 0:01:00]} 37. Kh4 {[%emt 0:02:49]} Qxg2 {[%emt 0:00:59]} 38. Qe4 {[%emt 0:00:08]} Kh7 {[%emt 0:00:48]} 39. Qd5 {[%emt 0:01:43]} Qxh2+ {[%emt 0:00:36]} 40. Kg5 {[%emt 0:00:00]} Qg3+ {[%emt 0:00:00]} 0-1